fUST/lending_fUST_20251114
["ID","MTS","AMOUNT","RATE_DAILY","PERIOD"]
[393938355,1763115033204,-500.0,0.00020971,2]
[393938356,1763115033214,-500.0,0.00020971,2]
[393938357,1763115033224,-500.0,0.00020971,2]
[393938358,1763115033234,-500.0,0.00020971,2]
[393938359,1763115033244,-500.0,0.00020971,2]
[393938360,1763115033254,-500.0,0.00020971,2]
[393938361,1763115033273,-500.0,0.00020971,2]
[393938362,1763115033286,-500.0,0.00020971,2]
[393938363,1763115033298,-500.0,0.00020971,2]
[393938364,1763115033309,-500.0,0.00020971,2]
[393938365,1763115033319,-500.0,0.00020971,2]
[393938366,1763115033329,-500.0,0.00020971,2]
[393938367,1763115033340,-500.0,0.00020971,2]
[393938368,1763115033349,-500.0,0.00020971,2]
[393938369,1763115033359,-500.0,0.00020971,2]
[393938370,1763115033370,-500.0,0.00020971,2]
[393938371,1763115033379,-500.0,0.00020971,2]
[393938372,1763115033388,-500.0,0.00020971,2]
[393938373,1763115033398,-500.0,0.00020971,2]
[393938374,1763115033407,-500.0,0.00020971,2]
[393938375,1763115033417,-500.0,0.00020971,2]
[393938376,1763115033427,-500.0,0.00020971,2]
[393938377,1763115033436,-500.0,0.00020971,2]
[393938378,1763115033446,-500.0,0.00020971,2]
[393938379,1763115033455,-500.0,0.00020971,2]
[393938380,1763115033465,-500.0,0.00020971,2]
[393938381,1763115033475,-500.0,0.00020971,2]
[393938382,1763115033484,-500.0,0.00020971,2]
[393938383,1763115033493,-500.0,0.00020971,2]
[393938384,1763115033503,-500.0,0.00020971,2]
[393938385,1763115033513,-6360.68171078,0.00020971,2]
[393938386,1763115033522,-6360.68171078,0.00020971,2]
[393938387,1763115033532,-500.0,0.00020971,2]
[393938388,1763115033541,-500.0,0.00020971,2]
[393938389,1763115033550,-9.87676079,0.00020971,2]
[393938437,1763115038052,-12158.04060057,0.00020971,2]
[393938495,1763115040276,-3e-08,0.00020971,2]
[393938657,1763115043231,-15.52456881,0.00020971,2]
[393938658,1763115043242,-8126.41739416,0.00020971,2]
[393938659,1763115043378,-2815.20311104,0.00020971,2]
[393938664,1763115082011,-538.84,0.0002096,10]
[393938665,1763115082031,-300.0,0.00020969,2]
[393938666,1763115082050,-422.67097124,0.0002097,2]
[393938667,1763115082071,-500.0,0.0002097,2]
[393938668,1763115082092,-500.0,0.0002097,2]
[393938669,1763115082113,-500.0,0.0002097,2]
[393938670,1763115082134,-500.0,0.0002097,2]
[393938671,1763115082158,-500.0,0.0002097,2]
[393938672,1763115082180,-500.0,0.0002097,2]
[393938673,1763115082201,-500.0,0.0002097,2]
[393938674,1763115082226,-500.0,0.0002097,2]
[393938675,1763115082251,-500.0,0.0002097,2]
[393938676,1763115082272,-500.0,0.0002097,2]
[393938677,1763115082295,-500.0,0.0002097,2]
[393938678,1763115082314,-500.0,0.0002097,2]
[393938679,1763115082339,-500.0,0.0002097,2]
[393938680,1763115082360,-500.0,0.0002097,2]
[393938681,1763115082380,-500.0,0.0002097,2]
[393938682,1763115082404,-500.0,0.0002097,2]
[393938683,1763115082425,-500.0,0.0002097,2]
[393938684,1763115082448,-500.0,0.0002097,2]
[393938685,1763115082472,-500.0,0.0002097,2]
[393938686,1763115082498,-500.0,0.0002097,2]
[393938687,1763115082519,-550.0,0.0002097,2]
[393938688,1763115082540,-500.0,0.0002097,2]
[393938689,1763115082561,-500.0,0.0002097,2]
[393938690,1763115082584,-234.52017384,0.0002097,2]
[393938691,1763115082605,-500.0,0.0002097,2]
[393938692,1763115082626,-500.0,0.0002097,2]
[393938693,1763115082646,-500.0,0.0002097,2]
[393938694,1763115082670,-500.0,0.0002097,2]
[393938695,1763115082692,-500.0,0.0002097,2]
[393938696,1763115082726,-500.0,0.0002097,2]
[393938697,1763115082749,-500.0,0.0002097,2]
[393938698,1763115082776,-500.0,0.0002097,2]
[393938699,1763115082803,-500.0,0.0002097,2]
[393938700,1763115082828,-500.0,0.0002097,2]
[393938701,1763115082853,-500.0,0.0002097,2]
[393938702,1763115082876,-500.0,0.0002097,2]
[393938703,1763115082899,-500.0,0.0002097,2]
[393938704,1763115082923,-500.0,0.0002097,2]
[393938705,1763115082945,-500.0,0.0002097,2]
[393938706,1763115082971,-500.0,0.0002097,2]
[393938707,1763115082994,-500.0,0.0002097,2]
[393938708,1763115083018,-500.0,0.0002097,2]
[393938709,1763115083042,-500.0,0.0002097,2]
[393938710,1763115083071,-500.0,0.0002097,2]
[393938711,1763115083093,-461.37958064,0.0002097,2]
[393938712,1763115083241,-500.0,0.0002097,2]
[393938713,1763115083268,-500.0,0.0002097,2]
[393938714,1763115083293,-500.0,0.0002097,2]
[393938715,1763115083318,-500.0,0.0002097,2]
[393938716,1763115083341,-500.0,0.0002097,2]
[393938717,1763115083364,-500.0,0.0002097,2]
[393938718,1763115083389,-500.0,0.0002097,2]
[393938719,1763115083412,-500.0,0.0002097,2]
[393938720,1763115083441,-500.0,0.0002097,2]
[393938721,1763115083463,-500.0,0.0002097,2]
[393938722,1763115083488,-500.0,0.0002097,2]
[393938723,1763115083512,-500.0,0.0002097,2]
[393938724,1763115083537,-500.0,0.0002097,2]
[393938725,1763115083560,-500.0,0.0002097,2]
[393938726,1763115083584,-500.0,0.0002097,2]
[393938727,1763115083608,-500.0,0.0002097,2]
[393938728,1763115083633,-500.0,0.0002097,2]
[393938729,1763115083657,-500.0,0.0002097,2]
[393938730,1763115083682,-500.0,0.0002097,2]
[393938731,1763115083708,-500.0,0.0002097,2]
[393938732,1763115083735,-500.0,0.0002097,2]
[393938733,1763115083772,-500.0,0.0002097,2]
[393938734,1763115083800,-5552.5731028,0.0002097,2]
[393938735,1763115083829,-5552.5731028,0.0002097,2]
[393938736,1763115083856,-5552.5731028,0.0002097,2]
[393938737,1763115083884,-5552.5731028,0.0002097,2]
[393938738,1763115083908,-580.65026102,0.0002097,2]
[393938739,1763115083935,-5552.5731028,0.0002097,2]
[393938740,1763115083958,-500.0,0.0002097,2]
[393938741,1763115083984,-5552.5731028,0.0002097,2]
[393938742,1763115084008,-500.0,0.0002097,2]
[393938743,1763115084034,-5552.5731028,0.0002097,2]
[393938744,1763115084059,-5552.5731028,0.0002097,2]
[393938745,1763115084085,-5552.5731028,0.0002097,2]
[393938746,1763115084110,-500.0,0.0002097,2]
[393938747,1763115084136,-5552.5731028,0.0002097,2]
[393938748,1763115084159,-500.0,0.0002097,2]
[393938749,1763115084185,-5552.5731028,0.0002097,2]
[393938750,1763115084208,-500.0,0.0002097,2]
[393938751,1763115084233,-5552.5731028,0.0002097,2]
[393938752,1763115084254,-500.0,0.0002097,2]
[393938753,1763115084279,-5552.5731028,0.0002097,2]
[393938754,1763115084312,-5552.5731028,0.0002097,2]
[393938755,1763115084340,-500.0,0.0002097,2]
[393938756,1763115084364,-5552.5731028,0.0002097,2]
[393938757,1763115084388,-5552.5731028,0.0002097,2]
[393938758,1763115084413,-5552.5731028,0.0002097,2]
[393938759,1763115084436,-5552.5731028,0.0002097,2]
[393938760,1763115084459,-5552.5731028,0.0002097,2]
[393938761,1763115084482,-5552.5731028,0.0002097,2]
[393938762,1763115084504,-5552.5731028,0.0002097,2]
[393938763,1763115084528,-5552.5731028,0.0002097,2]
[393938764,1763115084551,-5552.5731028,0.0002097,2]
[393938765,1763115084574,-5552.5731028,0.0002097,2]
[393938766,1763115084597,-5552.5731028,0.0002097,2]
[393938767,1763115084620,-5552.5731028,0.0002097,2]
[393938768,1763115084643,-5552.5731028,0.0002097,2]
[393938769,1763115084666,-5552.5731028,0.0002097,2]
[393938770,1763115084689,-5552.5731028,0.0002097,2]
[393938771,1763115084713,-5552.5731028,0.0002097,2]
[393938772,1763115084742,-5552.5731028,0.0002097,2]
[393938773,1763115084765,-469.17282646,0.0002097,2]
[393938777,1763115380281,-4248.04001651,0.00020249,2]
[393938778,1763115382662,3541.29855136,0.0002,2]
[393938779,1763115382689,1458.70144864,0.0002,2]
[393938780,1763115383333,-210.95959994,0.00020249,2]
[393938781,1763115385841,-521.44717394,0.00020249,2]
[393938782,1763115390743,2166.8958239,0.00019796,2]
[393938783,1763115404199,281.8,0.00032876,120]
[393938784,1763115405041,5000.0,0.0002,2]
[393938798,1763115527367,672.4712948,0.00019848,2]
[393938799,1763115570931,701.93143266,0.0002,2]
[393938800,1763115570957,4298.06856734,0.0002,2]
[393938801,1763115573680,939.045637,0.00019864,2]
[393938802,1763115619734,-300.0,0.000203,2]
[393938803,1763115623732,-421.99025368,0.000203,2]
[393938804,1763115627938,-78.00974632,0.000203,2]
[393938805,1763115627959,-210.95959994,0.00020454,2]
[393938806,1763115627982,-146.04040006,0.00020506,2]
[393938810,1763115629562,-43.86563257,0.00020506,2]
[393938812,1763115629584,-256.13436743,0.00020855,2]
[393938828,1763115695283,-290.92041695,0.00020864,2]
[393938829,1763115744571,638.5657815,0.00019958,2]
[393938830,1763115745312,159.0,0.00021317,120]
[393938831,1763115746563,159.0,0.00022383,120]
[393938832,1763115747831,159.0,0.00023502,120]
[393938833,1763115749134,159.0,0.00024677,120]
[393938834,1763115750387,159.0,0.00025911,120]
[393938835,1763115751623,159.0,0.00027206,120]
[393938836,1763115753120,159.0,0.00028566,120]
[393938837,1763115754122,159.0,0.00029995,120]
[393938838,1763115755388,159.0,0.00031495,120]
[393938846,1763115825780,573.55373233,0.00019933,2]
[393938847,1763115827948,1032.39671819,0.00019933,2]
[393938848,1763115830552,1835.37194344,0.00019933,2]
[393938849,1763115835724,323.88916649,0.00019934,2]
[393938850,1763115839423,359.10845371,0.00019934,2]
[393938851,1763115839445,935.15265558,0.00019934,2]
[393938852,1763115841697,660.54295932,0.00019958,2]
[393938856,1763115896115,-2204.71374919,0.00020704,2]
[393938857,1763115896138,-192.10791198,0.00020716,2]
[393938858,1763115896162,-3474.11726113,0.00020728,2]
[393938859,1763115896186,-627.25841402,0.00020813,2]
[393938860,1763115896209,-1129.06514524,0.00020813,2]
[393938861,1763115896232,-1616.86461332,0.00020853,2]
[393938862,1763115896255,-300.0,0.00020863,2]
[393938863,1763115896278,-9.07958305,0.00020864,2]
[393938864,1763115896300,-202.0,0.00020864,2]
[393938865,1763115896323,-300.0,0.00020864,2]
[393938866,1763115896346,-2204.71374919,0.00020883,2]
[393938867,1763115896369,-1544.63,0.00020942,10]
[393938868,1763115896393,-1287.19,0.00020942,10]
[393938869,1763115896421,-1200.0,0.00020943,2]
[393938870,1763115896444,-1853.56,0.00020944,10]
[393938871,1763115896468,-1006.95,0.00020945,3]
[393938872,1763115896491,-503.48,0.00020945,3]
[393938873,1763115896513,-251.74,0.00020945,3]
[393938874,1763115896536,-326.11803219,0.00020952,2]
[393938875,1763115896559,-429.42326048,0.00020952,2]
[393938876,1763115896585,-1155.91455557,0.00020952,2]
[393938877,1763115896611,-500.0,0.00020952,2]
[393938878,1763115896634,-508.96114011,0.00020952,2]
[393938879,1763115896657,-500.0,0.00020952,2]
[393938880,1763115896682,-500.0,0.00020952,2]
[393938881,1763115896705,-500.0,0.00020952,2]
[393938882,1763115896729,-500.0,0.00020952,2]
[393938883,1763115896756,-172.11258453,0.00020952,2]
[393938884,1763115898474,-983.80197104,0.00020952,2]
[393938885,1763115898498,-500.0,0.00020952,2]
[393938886,1763115898521,-500.0,0.00020952,2]
[393938887,1763115898638,-1155.91455557,0.00020952,2]
[393938888,1763115898663,-606.8199534,0.00020952,2]
[393938889,1763115898687,-500.0,0.00020952,2]
[393938890,1763115898709,-500.0,0.00020952,2]
[393938891,1763115898733,-1155.91455557,0.00020952,2]
[393938892,1763115898755,-500.0,0.00020952,2]
[393938893,1763115898781,-500.0,0.00020952,2]
[393938894,1763115898806,-1155.91455557,0.00020952,2]
[393938895,1763115898829,-500.0,0.00020952,2]
[393938896,1763115898851,-500.0,0.00020952,2]
[393938897,1763115898877,-1155.91455557,0.00020952,2]
[393938898,1763115898901,-500.0,0.00020952,2]
[393938899,1763115898924,-500.0,0.00020952,2]
[393938900,1763115898949,-1155.91455557,0.00020952,2]
[393938901,1763115898974,-500.0,0.00020952,2]
[393938902,1763115899000,-500.0,0.00020952,2]
[393938903,1763115899025,-1155.91455557,0.00020952,2]
[393938904,1763115899049,-500.0,0.00020952,2]
[393938905,1763115899077,-1155.91455557,0.00020952,2]
[393938906,1763115899101,-500.0,0.00020952,2]
[393938907,1763115899127,-1155.91455557,0.00020952,2]
[393938908,1763115899149,-500.0,0.00020952,2]
[393938909,1763115899174,-1155.91455557,0.00020952,2]
[393938910,1763115899198,-185.96346937,0.00020952,2]
[393938911,1763115899224,-1155.91455557,0.00020952,2]
[393938912,1763115899246,-500.0,0.00020952,2]
[393938913,1763115899271,-1155.91455557,0.00020952,2]
[393938914,1763115899296,-500.0,0.00020952,2]
[393938915,1763115899321,-1155.91455557,0.00020952,2]
[393938916,1763115899346,-852.43993935,0.00020952,2]
[393938917,1763115899459,-303.47461622,0.00020952,2]
[393938918,1763115899484,-500.0,0.00020952,2]
[393938919,1763115899510,-1155.91455557,0.00020952,2]
[393938920,1763115899537,-1155.91455557,0.00020952,2]
[393938921,1763115899561,-500.0,0.00020952,2]
[393938922,1763115899587,-1155.91455557,0.00020952,2]
[393938923,1763115899613,-1155.91455557,0.00020952,2]
[393938924,1763115899639,-1155.91455557,0.00020952,2]
[393938925,1763115899663,-500.0,0.00020952,2]
[393938926,1763115899688,-1155.91455557,0.00020952,2]
[393938927,1763115899713,-500.0,0.00020952,2]
[393938928,1763115899738,-1155.91455557,0.00020952,2]
[393938929,1763115899761,-500.0,0.00020952,2]
[393938930,1763115899786,-1155.91455557,0.00020952,2]
[393938931,1763115899810,-500.0,0.00020952,2]
[393938932,1763115899834,-500.0,0.00020952,2]
[393938933,1763115899858,-500.0,0.00020952,2]
[393938934,1763115899885,-1155.91455557,0.00020952,2]
[393938935,1763115899908,-500.0,0.00020952,2]
[393938936,1763115899933,-1155.91455557,0.00020952,2]
[393938937,1763115899957,-500.0,0.00020952,2]
[393938938,1763115899985,-1155.91455557,0.00020952,2]
[393938939,1763115900008,-500.0,0.00020952,2]
[393938940,1763115900034,-1155.91455557,0.00020952,2]
[393938941,1763115900061,-500.0,0.00020952,2]
[393938942,1763115900088,-1155.91455557,0.00020952,2]
[393938943,1763115900112,-500.0,0.00020952,2]
[393938944,1763115900138,-1155.91455557,0.00020952,2]
[393938945,1763115900164,-500.0,0.00020952,2]
[393938946,1763115900192,-1155.91455557,0.00020952,2]
[393938947,1763115900217,-357.80705023,0.00020952,2]
[393938948,1763115900303,-142.19294977,0.00020952,2]
[393938949,1763115900328,-1155.91455557,0.00020952,2]
[393938950,1763115900353,-1155.91455557,0.00020952,2]
[393938951,1763115900377,-1155.91455557,0.00020952,2]
[393938952,1763115900400,-500.0,0.00020952,2]
[393938953,1763115900427,-1155.91455557,0.00020952,2]
[393938954,1763115900450,-500.0,0.00020952,2]
[393938955,1763115900475,-1155.91455557,0.00020952,2]
[393938956,1763115900498,-500.0,0.00020952,2]
[393938957,1763115900523,-1155.91455557,0.00020952,2]
[393938958,1763115900546,-1155.91455557,0.00020952,2]
[393938959,1763115900573,-1155.91455557,0.00020952,2]
[393938960,1763115900600,-1155.91455557,0.00020952,2]
[393938961,1763115900624,-500.0,0.00020952,2]
[393938962,1763115900650,-1155.91455557,0.00020952,2]
[393938963,1763115900675,-500.0,0.00020952,2]
[393938964,1763115900701,-1155.91455557,0.00020952,2]
[393938965,1763115900725,-500.0,0.00020952,2]
[393938966,1763115900751,-1155.91455557,0.00020952,2]
[393938967,1763115900776,-1155.91455557,0.00020952,2]
[393938968,1763115900801,-1155.91455557,0.00020952,2]
[393938969,1763115900828,-1155.91455557,0.00020952,2]
[393938970,1763115900853,-1155.91455557,0.00020952,2]
[393938971,1763115900878,-1155.91455557,0.00020952,2]
[393938972,1763115900904,-1155.91455557,0.00020952,2]
[393938973,1763115900930,-1051.34504997,0.00020952,2]
[393938974,1763115901273,-104.5695056,0.00020952,2]
[393938975,1763115901301,-1155.91455557,0.00020952,2]
[393938976,1763115901327,-1155.91455557,0.00020952,2]
[393938977,1763115901352,-1155.91455557,0.00020952,2]
[393938978,1763115901377,-1155.91455557,0.00020952,2]
[393938979,1763115901402,-1155.91455557,0.00020952,2]
[393938980,1763115901426,-1155.91455557,0.00020952,2]
[393938981,1763115901450,-1155.91455557,0.00020952,2]
[393938982,1763115901474,-1155.91455557,0.00020952,2]
[393938983,1763115901499,-1155.91455557,0.00020952,2]
[393938984,1763115901524,-1155.91455557,0.00020952,2]
[393938985,1763115901548,-1155.91455557,0.00020952,2]
[393938986,1763115901573,-1155.91455557,0.00020952,2]
[393938987,1763115901607,-4081.08797064,0.00020952,2]
[393938988,1763115901635,-4081.08797064,0.00020952,2]
[393938989,1763115901661,-2862.27988628,0.00020952,2]
[393938990,1763115902593,-300.0,0.00020951,2]
[393938991,1763115902622,-1218.80808436,0.00020952,2]
[393938992,1763115902648,-4081.08797064,0.00020952,2]
[393938993,1763115902673,-4081.08797064,0.00020952,2]
[393938994,1763115902699,-4081.08797064,0.00020952,2]
[393938995,1763115902725,-4081.08797064,0.00020952,2]
[393938996,1763115902751,-4081.08797064,0.00020952,2]
[393938997,1763115902780,-3075.75206244,0.00020952,2]
[393938998,1763115903552,-300.0,0.00020951,2]
[393938999,1763115903578,-1200.0,0.00020951,2]
[393939000,1763115903609,-1005.3359082,0.00020952,2]
[393939001,1763115903642,-500.0,0.00020952,2]
[393939002,1763115903671,-4081.08797064,0.00020952,2]
[393939003,1763115903698,-500.0,0.00020952,2]
[393939004,1763115903725,-500.0,0.00020952,2]
[393939005,1763115903754,-4081.08797064,0.00020952,2]
[393939006,1763115903781,-500.0,0.00020952,2]
[393939007,1763115903810,-4081.08797064,0.00020952,2]
[393939008,1763115903840,-4081.08797064,0.00020952,2]
[393939009,1763115903865,-500.0,0.00020952,2]
[393939010,1763115903894,-3670.31220924,0.00020952,2]
[393939011,1763115904548,-300.0,0.00020951,2]
[393939012,1763115904584,-410.7757614,0.00020952,2]
[393939013,1763115904622,-4081.08797064,0.00020952,2]
[393939014,1763115904658,-500.0,0.00020952,2]
[393939015,1763115904701,-4081.08797064,0.00020952,2]
[393939016,1763115904738,-500.0,0.00020952,2]
[393939017,1763115904777,-4081.08797064,0.00020952,2]
[393939018,1763115904821,-500.0,0.00020952,2]
[393939019,1763115904861,-577.53198054,0.00020952,2]
[393939020,1763115904904,-4081.08797064,0.00020952,2]
[393939021,1763115904941,-500.0,0.00020952,2]
[393939022,1763115904981,-4081.08797064,0.00020952,2]
[393939023,1763115905021,-1306.25240486,0.00020952,2]
[393939024,1763115905834,-2774.83556578,0.00020952,2]
[393939025,1763115905871,-500.0,0.00020952,2]
[393939026,1763115905905,-500.0,0.00020952,2]
[393939027,1763115905942,-4081.08797064,0.00020952,2]
[393939028,1763115905972,-500.0,0.00020952,2]
[393939029,1763115906008,-4081.08797064,0.00020952,2]
[393939030,1763115906038,-500.0,0.00020952,2]
[393939031,1763115906075,-4081.08797064,0.00020952,2]
[393939032,1763115906107,-500.0,0.00020952,2]
[393939033,1763115906139,-4081.08797064,0.00020952,2]
[393939034,1763115906170,-500.0,0.00020952,2]
[393939035,1763115906202,-500.0,0.00020952,2]
[393939036,1763115906234,-500.0,0.00020952,2]
[393939037,1763115906266,-500.0,0.00020952,2]
[393939038,1763115906300,-1400.81255166,0.00020952,2]
[393939039,1763115920058,151.0,0.000191,2]
[393939041,1763115938578,668.46854,0.00013699,2]
[393939042,1763115941598,7584.8358451,0.00019954,2]
[393939043,1763115941621,10000.0,0.00019954,2]
[393939044,1763115941644,4524.1071337,0.00019954,2]
[393939045,1763115942246,-546.0256389,0.00020187,2]
[393939046,1763115944637,5000.0,0.0002,2]
[393939047,1763115948102,200.0,0.0002,2]
[393939048,1763115959781,275.8928663,0.0002,2]
[393939049,1763115966215,-4724.1071337,0.0002,2]
[393939050,1763115966241,-122.4429011,0.00020187,2]
[393939051,1763115966269,-151.0,0.000207,3]
[393939052,1763115966294,-746.73924706,0.00020853,2]
[393939053,1763115966318,-300.0,0.00020951,2]
[393939054,1763115966347,-2680.27541898,0.00020952,2]
[393939055,1763115966373,-500.0,0.00020952,2]
[393939056,1763115966398,-500.0,0.00020952,2]
[393939057,1763115966428,-4081.08797064,0.00020952,2]
[393939058,1763115966454,-500.0,0.00020952,2]
[393939059,1763115966485,-4081.08797064,0.00020952,2]
[393939060,1763115966512,-500.0,0.00020952,2]
[393939061,1763115966538,-500.0,0.00020952,2]
[393939062,1763115966563,-500.0,0.00020952,2]
[393939063,1763115966588,-5113.25935788,0.00020953,2]
[393939064,1763115967764,-25000.0,0.00020953,2]
[393939065,1763115968603,-19886.74064212,0.00020953,2]
[393939066,1763115968630,-160.803531,0.00020953,7]
[393939067,1763115968656,-160.803531,0.00020953,7]
[393939068,1763115968683,-160.803531,0.00020953,7]
[393939069,1763115968708,-160.803531,0.00020953,7]
[393939070,1763115968735,-160.803531,0.00020953,7]
[393939071,1763115968762,-160.803531,0.00020953,7]
[393939072,1763115968788,-160.803531,0.00020953,7]
[393939073,1763115968814,-160.803531,0.00020953,7]
[393939074,1763115968840,-160.803531,0.00020953,7]
[393939075,1763115968867,-160.803531,0.00020953,7]
[393939076,1763115968892,-160.803531,0.00020953,7]
[393939077,1763115968918,-160.803531,0.00020953,7]
[393939078,1763115968943,-160.803531,0.00020953,7]
[393939079,1763115968969,-160.803531,0.00020953,7]
[393939080,1763115968999,-160.803531,0.00020953,7]
[393939081,1763115969027,-160.803531,0.00020953,7]
[393939082,1763115969055,-151.0,0.00020954,7]
[393939083,1763115969083,-151.0,0.00020954,7]
[393939084,1763115969110,-151.0,0.00020954,7]
[393939085,1763115969135,-151.0,0.00020954,7]
[393939086,1763115969161,-160.803531,0.00020954,7]
[393939087,1763115969187,-160.803531,0.00020954,7]
[393939088,1763115969214,-160.803531,0.00020954,7]
[393939089,1763115969241,-160.803527,0.00020954,7]
[393939090,1763115969266,-151.0,0.00020955,2]
[393939091,1763115969290,-151.0,0.00020955,2]
[393939092,1763115969314,-500.0,0.00020955,2]
[393939093,1763115969338,-491.18874188,0.00020955,2]
[393939094,1763115970170,-8.81125812,0.00020955,2]
[393939095,1763115970195,-160.0,0.00020963,2]
[393939096,1763115970221,-151.0,0.00020967,7]
[393939097,1763115970249,-151.0,0.00020967,7]
[393939098,1763115970274,-273.868427,0.00020967,7]
[393939099,1763115970298,-151.0,0.00020967,2]
[393939100,1763115970324,-151.0,0.00020967,2]
[393939101,1763115970350,-500.0,0.00020967,2]
[393939102,1763115970373,-151.0,0.00020967,2]
[393939103,1763115970398,-151.0,0.00020967,2]
[393939104,1763115970422,-151.0,0.00020968,2]
[393939105,1763115970445,-500.0,0.00020968,2]
[393939106,1763115970470,-500.0,0.00020968,2]
[393939107,1763115970494,-500.0,0.00020968,2]
[393939109,1763115970519,-500.0,0.00020968,2]
[393939110,1763115970543,-500.0,0.00020968,2]
[393939111,1763115970579,-500.0,0.00020968,2]
[393939112,1763115970609,-198.40332846,0.00020968,2]
[393939113,1763115970634,-500.0,0.00020968,2]
[393939114,1763115970658,-207.27809721,0.00020968,2]
[393939115,1763115970686,-500.0,0.00020971,2]
[393939117,1763115970711,-151.30767397,0.00020971,2]
[393939118,1763115970738,-603.81343436,0.00020971,2]
[393939119,1763115970766,-755.22,0.00020972,3]
[393939120,1763115970796,-909.94,0.00020972,10]
[393939121,1763115970823,-500.0,0.00020973,2]
[393939122,1763115970847,-500.0,0.00020973,2]
[393939123,1763115970872,-500.81983786,0.00020973,2]
[393939124,1763115970896,-500.0,0.00020973,2]
[393939126,1763115970921,-500.0,0.00020973,2]
[393939127,1763115970946,-500.0,0.00020973,2]
[393939128,1763115970970,-500.0,0.00020973,2]
[393939129,1763115970996,-500.0,0.00020973,2]
[393939130,1763115971022,-500.0,0.00020973,2]
[393939131,1763115971047,-500.0,0.00020973,2]
[393939132,1763115971073,-448.05593587,0.00020973,2]
[393939133,1763115971103,-584.90525198,0.00020973,2]
[393939134,1763115971128,-500.0,0.00020973,2]
[393939135,1763115971153,-500.0,0.00020973,2]
[393939136,1763115971179,-500.0,0.00020973,2]
[393939137,1763115971204,-500.0,0.00020973,2]
[393939138,1763115971229,-500.0,0.00020973,2]
[393939139,1763115971255,-500.0,0.00020973,2]
[393939140,1763115971278,-504.76898142,0.00020973,2]
[393939141,1763115971304,-500.0,0.00020973,2]
[393939142,1763115971327,-500.0,0.00020973,2]
[393939143,1763115971352,-500.0,0.00020973,2]
[393939144,1763115971377,-500.0,0.00020973,2]
[393939145,1763115971402,-500.0,0.00020973,2]
[393939146,1763115971427,-500.0,0.00020973,2]
[393939147,1763115971452,-500.0,0.00020973,2]
[393939148,1763115971477,-485.11092725,0.00020982,2]
[393939149,1763115971502,-873.19966904,0.00020982,2]
[393939150,1763115971526,-198.29720857,0.00020982,2]
[393939151,1763115971550,-500.0,0.00020982,2]
[393939152,1763115971575,-500.0,0.00020982,2]
[393939153,1763115971600,-151.0,0.00020988,2]
[393939154,1763115971627,-151.01802032,0.00020988,2]
[393939155,1763115971651,-151.0,0.00020994,2]
[393939156,1763115971792,-126.18194857,0.00020994,2]
[393939157,1763115982407,2469.0,0.0002,2]
[393939158,1763115994643,-2270.87112741,0.0002,2]
[393939160,1763116062930,25000.0,0.00018,2]
[393939161,1763116062956,25000.0,0.00018,2]
[393939162,1763116062988,2620.60571105,0.00018,2]
[393939163,1763116066545,9679.52378757,0.00018,2]
[393939165,1763116084679,422.36083761,0.00010618,2]
[393939166,1763116086497,2309.93385874,0.000125,2]
[393939168,1763116095389,2122.32750344,0.000176,2]
[393939170,1763116099792,287.6888159,0.0001,2]
[393939171,1763116104972,8423.54889001,0.00017,2]
[393939172,1763116105730,-408.00981607,0.00019958,2]
[393939173,1763116105754,-260.12887259,0.0002,2]
[393939174,1763116105777,-2077.74355795,0.0002,2]
[393939175,1763116109352,1000.0,0.0001,2]
[393939176,1763116109865,18134.01059568,0.00018,2]